[Event "Titled Tuesday Blitz July 18 Early 2023"]
[White "Kantans, Toms"]
[Black "Slovineanu, Viacheslav"]
[WhiteFideId "11602945"]
[BlackFideId "13900510"]
[WhiteElo "2685"]
[BlackElo "2375"]
[Result "1-0"]
[Round "2"]
[TimeControl "180+2"]
[Date "2023.07.18"]
[WhiteClock "0:01:07"]
[BlackClock "0:00:00"]
[Board "128"]

1. e4 {[%clk 0:03:00]}  c6 {[%clk 0:02:58]} 2. d4 {[%clk 0:03:00]}  d5 {[%clk 0:02:57]} 3. e5 {[%clk 0:03:01]}  Bf5 {[%clk 0:02:57]} 4. g4 {[%clk 0:03:00]}  Bd7 {[%clk 0:02:56]} 5. Be3 {[%clk 0:02:59]}  e6 {[%clk 0:02:48]} 6. Nc3 {[%clk 0:02:57]}  a6 {[%clk 0:02:45]} 7. f4 {[%clk 0:02:48]}  h5 {[%clk 0:02:22]} 8. gxh5 {[%clk 0:02:48]}  Qh4+ {[%clk 0:02:21]} 9. Kd2 {[%clk 0:02:47]}  Qxh5 {[%clk 0:02:17]} 10. Be2 {[%clk 0:02:46]}  Qh4 {[%clk 0:02:10]} 11. Nf3 {[%clk 0:02:46]}  Qd8 {[%clk 0:02:08]} 12. Qg1 {[%clk 0:02:43]}  Nh6 {[%clk 0:01:58]} 13. Bd3 {[%clk 0:02:35]}  g6 {[%clk 0:01:39]} 14. Ne2 {[%clk 0:02:31]}  Nf5 {[%clk 0:01:37]} 15. Bf2 {[%clk 0:02:26]}  c5 {[%clk 0:01:36]} 16. dxc5 {[%clk 0:02:23]}  Nc6 {[%clk 0:01:31]} 17. c3 {[%clk 0:02:21]}  Bh6 {[%clk 0:01:20]} 18. Kc2 {[%clk 0:02:16]}  Rc8 {[%clk 0:01:14]} 19. h4 {[%clk 0:02:15]}  Nce7 {[%clk 0:00:50]} 20. h5 {[%clk 0:02:08]}  Bb5 {[%clk 0:00:48]} 21. Bxb5+ {[%clk 0:02:04]}  axb5 {[%clk 0:00:48]} 22. b4 {[%clk 0:01:58]}  Rg8 {[%clk 0:00:25]} 23. hxg6 {[%clk 0:01:57]}  Rxg6 {[%clk 0:00:25]} 24. Qf1 {[%clk 0:01:55]}  Qd7 {[%clk 0:00:20]} 25. Rg1 {[%clk 0:01:39]}  Kf8 {[%clk 0:00:17]} 26. Rxg6 {[%clk 0:01:21]}  Nxg6 {[%clk 0:00:17]} 27. Nfd4 {[%clk 0:01:22]}  Nxd4+ {[%clk 0:00:11]} 28. Bxd4 {[%clk 0:01:21]}  Ne7 {[%clk 0:00:07]} 29. Ng3 {[%clk 0:01:20]}  Ng6 {[%clk 0:00:03]} 30. f5 {[%clk 0:01:19]}  exf5 {[%clk 0:00:03]} 31. Nxf5 {[%clk 0:01:20]}  Bg5 {[%clk 0:00:03]} 32. Qh3 {[%clk 0:01:09]}  Qe6 {[%clk 0:00:00]} 33. Rf1 {[%clk 0:01:07]} 1-0


[Site "https://www.chess.com"]

[Event "Titled Tuesday Blitz July 18 Early 2023"]
[White "Arhan_Anand"]
[Black "Davidson, Kevin"]
[BlackFideId "2056810"]
[WhiteElo "2657"]
[BlackElo "2373"]
[Result "1-0"]
[Round "2"]
[TimeControl "180+2"]
[Date "2023.07.18"]
[WhiteClock "0:00:21"]
[BlackClock "0:00:00"]
[Board "129"]

1. Nf3 {[%clk 0:03:00]}  Nf6 {[%clk 0:02:59]} 2. c4 {[%clk 0:03:00]}  g6 {[%clk 0:03:00]} 3. g3 {[%clk 0:03:00]}  Bg7 {[%clk 0:03:01]} 4. Nc3 {[%clk 0:03:01]}  d6 {[%clk 0:03:01]} 5. Bg2 {[%clk 0:03:01]}  O-O {[%clk 0:03:01]} 6. d3 {[%clk 0:03:01]}  e5 {[%clk 0:03:01]} 7. O-O {[%clk 0:03:00]}  Nc6 {[%clk 0:03:02]} 8. Rb1 {[%clk 0:03:00]}  a5 {[%clk 0:03:02]} 9. a3 {[%clk 0:03:00]}  Bf5 {[%clk 0:03:02]} 10. Nd2 {[%clk 0:02:57]}  Qd7 {[%clk 0:03:01]} 11. Re1 {[%clk 0:02:55]}  Bh3 {[%clk 0:03:00]} 12. Bh1 {[%clk 0:02:55]}  Ng4 {[%clk 0:02:57]} 13. Nde4 {[%clk 0:02:41]}  h6 {[%clk 0:02:52]} 14. f3 {[%clk 0:02:12]}  f5 {[%clk 0:02:45]} 15. fxg4 {[%clk 0:02:11]}  fxe4 {[%clk 0:02:45]} 16. Bxe4 {[%clk 0:02:12]}  Qxg4 {[%clk 0:02:33]} 17. e3 {[%clk 0:02:06]}  Qxd1 {[%clk 0:02:00]} 18. Rxd1 {[%clk 0:02:07]}  Bf5 {[%clk 0:02:00]} 19. Bxf5 {[%clk 0:01:42]}  gxf5 {[%clk 0:01:48]} 20. Nd5 {[%clk 0:01:39]}  Rf7 {[%clk 0:01:46]} 21. b4 {[%clk 0:01:38]}  axb4 {[%clk 0:01:47]} 22. axb4 {[%clk 0:01:39]}  Nd8 {[%clk 0:01:25]} 23. Bb2 {[%clk 0:01:36]}  Ra2 {[%clk 0:01:08]} 24. Nc3 {[%clk 0:01:35]}  Ra8 {[%clk 0:01:06]} 25. Ra1 {[%clk 0:01:35]}  Rb8 {[%clk 0:00:56]} 26. Nd5 {[%clk 0:01:30]}  Ne6 {[%clk 0:00:51]} 27. Ra7 {[%clk 0:01:28]}  c6 {[%clk 0:00:49]} 28. Nb6 {[%clk 0:01:27]}  Bf6 {[%clk 0:00:42]} 29. Rda1 {[%clk 0:01:17]}  Bd8 {[%clk 0:00:33]} 30. Ra8 {[%clk 0:01:16]}  Rxa8 {[%clk 0:00:33]} 31. Rxa8 {[%clk 0:01:16]}  Kg7 {[%clk 0:00:32]} 32. c5 {[%clk 0:01:09]}  Bxb6 {[%clk 0:00:25]} 33. cxb6 {[%clk 0:01:10]}  Kf6 {[%clk 0:00:21]} 34. Kf2 {[%clk 0:00:59]}  Nf8 {[%clk 0:00:12]} 35. Rc8 {[%clk 0:00:57]}  Nd7 {[%clk 0:00:09]} 36. d4 {[%clk 0:00:53]}  Nxb6 {[%clk 0:00:08]} 37. Rd8 {[%clk 0:00:53]}  Ke7 {[%clk 0:00:07]} 38. Rh8 {[%clk 0:00:54]}  Nc4 {[%clk 0:00:06]} 39. Bc3 {[%clk 0:00:53]}  exd4 {[%clk 0:00:03]} 40. Bxd4 {[%clk 0:00:53]}  b6 {[%clk 0:00:01]} 41. Rxh6 {[%clk 0:00:51]}  c5 {[%clk 0:00:01]} 42. Bc3 {[%clk 0:00:50]}  Kd7 {[%clk 0:00:01]} 43. h4 {[%clk 0:00:48]}  Kc6 {[%clk 0:00:01]} 44. h5 {[%clk 0:00:47]}  Kb5 {[%clk 0:00:01]} 45. bxc5 {[%clk 0:00:47]}  dxc5 {[%clk 0:00:01]} 46. Rh8 {[%clk 0:00:45]}  Nd6 {[%clk 0:00:01]} 47. Kf3 {[%clk 0:00:44]}  Ne4 {[%clk 0:00:01]} 48. Be5 {[%clk 0:00:43]}  Kc4 {[%clk 0:00:01]} 49. h6 {[%clk 0:00:40]}  b5 {[%clk 0:00:02]} 50. Kf4 {[%clk 0:00:40]}  b4 {[%clk 0:00:02]} 51. Rg8 {[%clk 0:00:40]}  Rh7 {[%clk 0:00:02]} 52. Bg7 {[%clk 0:00:39]}  b3 {[%clk 0:00:02]} 53. Rh8 {[%clk 0:00:27]}  Rxh8 {[%clk 0:00:02]} 54. Bxh8 {[%clk 0:00:28]}  Nc3 {[%clk 0:00:02]} 55. Bxc3 {[%clk 0:00:28]}  Kxc3 {[%clk 0:00:02]} 56. h7 {[%clk 0:00:28]}  b2 {[%clk 0:00:03]} 57. h8=Q+ {[%clk 0:00:29]}  Kc2 {[%clk 0:00:04]} 58. Qe5 {[%clk 0:00:23]}  b1=Q {[%clk 0:00:03]} 59. Qxf5+ {[%clk 0:00:24]}  Kb2 {[%clk 0:00:03]} 60. Qxc5 {[%clk 0:00:23]}  Qf1+ {[%clk 0:00:01]} 61. Kg5 {[%clk 0:00:23]}  Qe2 {[%clk 0:00:01]} 62. Qd4+ {[%clk 0:00:23]}  Kb3 {[%clk 0:00:01]} 63. g4 {[%clk 0:00:24]}  Qf2 {[%clk 0:00:01]} 64. Qf4 {[%clk 0:00:23]}  Qe2 {[%clk 0:00:01]} 65. e4 {[%clk 0:00:23]}  Qd1 {[%clk 0:00:01]} 66. e5 {[%clk 0:00:22]}  Qd8+ {[%clk 0:00:02]} 67. Qf6 {[%clk 0:00:23]}  Qg8+ {[%clk 0:00:02]} 68. Kf5 {[%clk 0:00:23]}  Kc4 {[%clk 0:00:02]} 69. Qe6+ {[%clk 0:00:20]}  Qxe6+ {[%clk 0:00:00]} 70. Kxe6 {[%clk 0:00:21]} 1-0


[Site "https://www.chess.com"]

[Event "Titled Tuesday Blitz July 18 Early 2023"]
[White "Suleymanli, Suleyman"]
[Black "K2JW"]
[WhiteFideId "13416375"]
[WhiteElo "2622"]
[BlackElo "2365"]
[Result "1-0"]
[Round "2"]
[TimeControl "180+2"]
[Date "2023.07.18"]
[WhiteClock "0:01:45"]
[BlackClock "0:00:00"]
[Board "131"]

1. Nf3 {[%clk 0:03:00]}  g6 {[%clk 0:02:53]} 2. g3 {[%clk 0:03:01]}  Bg7 {[%clk 0:02:53]} 3. d4 {[%clk 0:03:01]}  d5 {[%clk 0:02:51]} 4. Bg2 {[%clk 0:03:02]}  Nf6 {[%clk 0:02:51]} 5. O-O {[%clk 0:03:02]}  O-O {[%clk 0:02:51]} 6. c4 {[%clk 0:03:03]}  c6 {[%clk 0:02:51]} 7. cxd5 {[%clk 0:03:03]}  cxd5 {[%clk 0:02:51]} 8. Nc3 {[%clk 0:03:04]}  Nc6 {[%clk 0:02:37]} 9. Ne5 {[%clk 0:03:04]}  e6 {[%clk 0:01:54]} 10. Bf4 {[%clk 0:02:49]}  Nxe5 {[%clk 0:01:46]} 11. Bxe5 {[%clk 0:02:49]}  Nd7 {[%clk 0:01:46]} 12. Bxg7 {[%clk 0:02:49]}  Kxg7 {[%clk 0:01:47]} 13. e4 {[%clk 0:02:50]}  dxe4 {[%clk 0:01:46]} 14. Nxe4 {[%clk 0:02:51]}  Nf6 {[%clk 0:01:46]} 15. Nc5 {[%clk 0:02:51]}  Nd5 {[%clk 0:01:46]} 16. Qb3 {[%clk 0:02:49]}  b6 {[%clk 0:01:45]} 17. Nd3 {[%clk 0:02:49]}  Bb7 {[%clk 0:01:40]} 18. h4 {[%clk 0:02:49]}  Qe7 {[%clk 0:01:32]} 19. h5 {[%clk 0:02:49]}  Rfd8 {[%clk 0:01:32]} 20. Ne5 {[%clk 0:02:48]}  Nf6 {[%clk 0:01:30]} 21. hxg6 {[%clk 0:02:43]}  hxg6 {[%clk 0:01:29]} 22. Qe3 {[%clk 0:02:39]}  Bxg2 {[%clk 0:01:22]} 23. Kxg2 {[%clk 0:02:40]}  Qb7+ {[%clk 0:01:22]} 24. f3 {[%clk 0:02:40]}  Rac8 {[%clk 0:01:15]} 25. Rac1 {[%clk 0:02:38]}  Rxc1 {[%clk 0:01:02]} 26. Rxc1 {[%clk 0:02:39]}  Rc8 {[%clk 0:01:02]} 27. Rh1 {[%clk 0:02:34]}  Rh8 {[%clk 0:00:58]} 28. Rxh8 {[%clk 0:02:34]}  Kxh8 {[%clk 0:00:59]} 29. Qh6+ {[%clk 0:02:30]}  Kg8 {[%clk 0:00:59]} 30. Qg5 {[%clk 0:02:28]}  Kg7 {[%clk 0:00:56]} 31. b3 {[%clk 0:02:23]}  Qd5 {[%clk 0:00:54]} 32. Qe3 {[%clk 0:02:23]}  Nd7 {[%clk 0:00:44]} 33. Ng4 {[%clk 0:02:20]}  g5 {[%clk 0:00:21]} 34. Ne5 {[%clk 0:02:16]}  Nxe5 {[%clk 0:00:20]} 35. dxe5 {[%clk 0:02:15]}  Kg6 {[%clk 0:00:20]} 36. g4 {[%clk 0:02:14]}  f6 {[%clk 0:00:17]} 37. exf6 {[%clk 0:02:14]}  Kxf6 {[%clk 0:00:18]} 38. a4 {[%clk 0:02:13]}  Qe5 {[%clk 0:00:18]} 39. Qd3 {[%clk 0:02:14]}  a5 {[%clk 0:00:18]} 40. Qd8+ {[%clk 0:02:14]}  Kg6 {[%clk 0:00:17]} 41. Qxb6 {[%clk 0:02:15]}  Qb2+ {[%clk 0:00:17]} 42. Kg3 {[%clk 0:02:14]}  Qe5+ {[%clk 0:00:17]} 43. Kh3 {[%clk 0:02:11]}  Qe2 {[%clk 0:00:18]} 44. Kg3 {[%clk 0:02:11]}  Qe5+ {[%clk 0:00:16]} 45. Kf2 {[%clk 0:02:10]}  Qb2+ {[%clk 0:00:16]} 46. Ke3 {[%clk 0:02:11]}  Qc3+ {[%clk 0:00:16]} 47. Ke4 {[%clk 0:02:10]}  Qc2+ {[%clk 0:00:16]} 48. Ke5 {[%clk 0:02:10]}  Qe2+ {[%clk 0:00:16]} 49. Kd6 {[%clk 0:02:09]}  Qxf3 {[%clk 0:00:13]} 50. Kxe6 {[%clk 0:02:08]}  Qxg4+ {[%clk 0:00:11]} 51. Ke7+ {[%clk 0:02:07]}  Kh5 {[%clk 0:00:11]} 52. Qxa5 {[%clk 0:02:06]}  Qe4+ {[%clk 0:00:10]} 53. Kd6 {[%clk 0:02:06]}  Qd3+ {[%clk 0:00:10]} 54. Kc7 {[%clk 0:01:50]}  Qxb3 {[%clk 0:00:09]} 55. Qb5 {[%clk 0:01:49]}  Qf7+ {[%clk 0:00:07]} 56. Kb6 {[%clk 0:01:45]}  Qf2+ {[%clk 0:00:05]} 57. Ka6 {[%clk 0:01:43]}  Qf6+ {[%clk 0:00:05]} 58. Kb7 {[%clk 0:01:41]}  Qe7+ {[%clk 0:00:06]} 59. Kc6 {[%clk 0:01:42]}  Qe8+ {[%clk 0:00:05]} 60. Kd6 {[%clk 0:01:42]}  Qg6+ {[%clk 0:00:02]} 61. Kc5 {[%clk 0:01:41]}  Qf5+ {[%clk 0:00:03]} 62. Kb4 {[%clk 0:01:41]}  Qf4+ {[%clk 0:00:03]} 63. Ka5 {[%clk 0:01:42]}  Qc7+ {[%clk 0:00:03]} 64. Ka6 {[%clk 0:01:42]}  Qd6+ {[%clk 0:00:03]} 65. Kb7 {[%clk 0:01:42]}  Qe7+ {[%clk 0:00:03]} 66. Kc8 {[%clk 0:01:42]}  Qf8+ {[%clk 0:00:03]} 67. Kd7 {[%clk 0:01:42]}  Qf7+ {[%clk 0:00:03]} 68. Kd6 {[%clk 0:01:41]}  Qf6+ {[%clk 0:00:04]} 69. Kd5 {[%clk 0:01:41]}  Qf5+ {[%clk 0:00:04]} 70. Kd4 {[%clk 0:01:42]}  Qf4+ {[%clk 0:00:05]} 71. Kd3 {[%clk 0:01:42]}  Qf1+ {[%clk 0:00:05]} 72. Ke4 {[%clk 0:01:42]}  Qe1+ {[%clk 0:00:04]} 73. Kf3 {[%clk 0:01:42]}  Qd1+ {[%clk 0:00:03]} 74. Kf2 {[%clk 0:01:42]}  Qd2+ {[%clk 0:00:03]} 75. Qe2+ {[%clk 0:01:43]}  Qxe2+ {[%clk 0:00:04]} 76. Kxe2 {[%clk 0:01:44]}  g4 {[%clk 0:00:04]} 77. Kf2 {[%clk 0:01:43]}  Kg5 {[%clk 0:00:03]} 78. a5 {[%clk 0:01:44]}  Kf5 {[%clk 0:00:00]} 79. a6 {[%clk 0:01:45]} 1-0


[Site "https://www.chess.com"]

[Event "Titled Tuesday Blitz July 18 Early 2023"]
[White "Senft, Sean"]
[Black "Petrosian, Karlen"]
[WhiteFideId "2044960"]
[BlackFideId "4176146"]
[WhiteElo "2358"]
[BlackElo "2598"]
[Result "0-1"]
[Round "2"]
[TimeControl "180+2"]
[Date "2023.07.18"]
[WhiteClock "0:00:09"]
[BlackClock "0:00:46"]
[Board "133"]

1. d4 {[%clk 0:03:00]}  Nf6 {[%clk 0:02:58]} 2. c4 {[%clk 0:03:01]}  d6 {[%clk 0:02:58]} 3. Nc3 {[%clk 0:03:01]}  Bf5 {[%clk 0:02:57]} 4. Nf3 {[%clk 0:02:58]}  g6 {[%clk 0:02:56]} 5. Qb3 {[%clk 0:02:56]}  b6 {[%clk 0:02:56]} 6. g3 {[%clk 0:02:49]}  Nc6 {[%clk 0:02:51]} 7. Bg2 {[%clk 0:02:48]}  Na5 {[%clk 0:02:51]} 8. Qd1 {[%clk 0:02:40]}  Bd7 {[%clk 0:02:39]} 9. b3 {[%clk 0:02:37]}  Bg7 {[%clk 0:02:35]} 10. O-O {[%clk 0:02:38]}  O-O {[%clk 0:02:34]} 11. Bb2 {[%clk 0:02:36]}  c5 {[%clk 0:02:34]} 12. d5 {[%clk 0:02:35]}  Rb8 {[%clk 0:02:33]} 13. a4 {[%clk 0:02:22]}  a6 {[%clk 0:02:23]} 14. Qc2 {[%clk 0:02:21]}  Bf5 {[%clk 0:02:19]} 15. Qd1 {[%clk 0:02:05]}  Ne4 {[%clk 0:02:15]} 16. Nxe4 {[%clk 0:02:00]}  Bxb2 {[%clk 0:02:14]} 17. Ra2 {[%clk 0:02:00]}  Bg7 {[%clk 0:02:13]} 18. Nh4 {[%clk 0:01:55]}  Bd7 {[%clk 0:02:09]} 19. f4 {[%clk 0:01:50]}  b5 {[%clk 0:02:09]} 20. axb5 {[%clk 0:01:50]}  axb5 {[%clk 0:02:09]} 21. Nd2 {[%clk 0:01:43]}  bxc4 {[%clk 0:02:06]} 22. bxc4 {[%clk 0:01:43]}  Rb4 {[%clk 0:02:06]} 23. Qc2 {[%clk 0:01:38]}  Qb6 {[%clk 0:02:01]} 24. e4 {[%clk 0:01:20]}  Rb8 {[%clk 0:01:59]} 25. e5 {[%clk 0:01:02]}  Rb2 {[%clk 0:01:57]} 26. Rxb2 {[%clk 0:01:01]}  Qxb2 {[%clk 0:01:58]} 27. Qxb2 {[%clk 0:01:02]}  Rxb2 {[%clk 0:01:57]} 28. Ra1 {[%clk 0:00:53]}  Rxd2 {[%clk 0:01:26]} 29. Rxa5 {[%clk 0:00:52]}  dxe5 {[%clk 0:01:26]} 30. Rxc5 {[%clk 0:00:46]}  exf4 {[%clk 0:01:25]} 31. Rc7 {[%clk 0:00:47]}  Bd4+ {[%clk 0:01:25]} 32. Kf1 {[%clk 0:00:43]}  Bg4 {[%clk 0:01:20]} 33. Rxe7 {[%clk 0:00:25]}  g5 {[%clk 0:01:01]} 34. Nf3 {[%clk 0:00:18]}  Rf2+ {[%clk 0:01:00]} 35. Ke1 {[%clk 0:00:17]}  Bxf3 {[%clk 0:01:00]} 36. Bxf3 {[%clk 0:00:16]}  Rxf3 {[%clk 0:01:01]} 37. d6 {[%clk 0:00:16]}  Re3+ {[%clk 0:00:56]} 38. Rxe3 {[%clk 0:00:16]}  Bxe3 {[%clk 0:00:57]} 39. gxf4 {[%clk 0:00:15]}  Bxf4 {[%clk 0:00:54]} 40. c5 {[%clk 0:00:16]}  Kf8 {[%clk 0:00:52]} 41. Ke2 {[%clk 0:00:16]}  Bxh2 {[%clk 0:00:51]} 42. Kf3 {[%clk 0:00:16]}  h5 {[%clk 0:00:49]} 43. Ke4 {[%clk 0:00:15]}  Ke8 {[%clk 0:00:50]} 44. Kd5 {[%clk 0:00:16]}  Kd7 {[%clk 0:00:47]} 45. c6+ {[%clk 0:00:16]}  Kd8 {[%clk 0:00:46]} 46. c7+ {[%clk 0:00:09]}  Kd7 {[%clk 0:00:46]} 0-1


[Site "https://www.chess.com"]

[Event "Titled Tuesday Blitz July 18 Early 2023"]
[White "Colas, Joshua"]
[Black "Chernyavsky, Alexander"]
[WhiteFideId "2044447"]
[BlackFideId "24131156"]
[WhiteElo "2594"]
[BlackElo "2350"]
[Result "0-1"]
[Round "2"]
[TimeControl "180+2"]
[Date "2023.07.18"]
[WhiteClock "0:00:00"]
[BlackClock "0:00:35"]
[Board "135"]

1. Nf3 {[%clk 0:01:26]}  Nf6 {[%clk 0:02:47]} 2. c4 {[%clk 0:01:23]}  g6 {[%clk 0:02:46]} 3. b3 {[%clk 0:01:22]}  Bg7 {[%clk 0:02:46]} 4. Bb2 {[%clk 0:01:21]}  O-O {[%clk 0:02:47]} 5. g3 {[%clk 0:01:21]}  d6 {[%clk 0:02:43]} 6. d4 {[%clk 0:01:21]}  a5 {[%clk 0:02:20]} 7. Nc3 {[%clk 0:01:20]}  Nbd7 {[%clk 0:02:17]} 8. Bg2 {[%clk 0:01:17]}  e5 {[%clk 0:02:17]} 9. dxe5 {[%clk 0:01:15]}  dxe5 {[%clk 0:02:18]} 10. O-O {[%clk 0:01:15]}  c6 {[%clk 0:02:16]} 11. Qc2 {[%clk 0:01:12]}  Qc7 {[%clk 0:02:14]} 12. Rad1 {[%clk 0:01:12]}  Re8 {[%clk 0:02:10]} 13. Ng5 {[%clk 0:01:11]}  Nc5 {[%clk 0:02:03]} 14. Ba3 {[%clk 0:01:07]}  Bf8 {[%clk 0:02:02]} 15. h3 {[%clk 0:00:49]}  h6 {[%clk 0:02:01]} 16. Nf3 {[%clk 0:00:45]}  Bf5 {[%clk 0:01:58]} 17. Qb2 {[%clk 0:00:43]}  a4 {[%clk 0:01:01]} 18. Bxc5 {[%clk 0:00:37]}  Bxc5 {[%clk 0:01:02]} 19. Nxa4 {[%clk 0:00:37]}  Ba7 {[%clk 0:01:02]} 20. c5 {[%clk 0:00:32]}  Nd7 {[%clk 0:00:55]} 21. b4 {[%clk 0:00:28]}  Be6 {[%clk 0:00:48]} 22. Nd2 {[%clk 0:00:21]}  Bb8 {[%clk 0:00:47]} 23. Nc3 {[%clk 0:00:21]}  f5 {[%clk 0:00:45]} 24. e4 {[%clk 0:00:18]}  f4 {[%clk 0:00:38]} 25. gxf4 {[%clk 0:00:18]}  exf4 {[%clk 0:00:38]} 26. Nf3 {[%clk 0:00:18]}  Ne5 {[%clk 0:00:34]} 27. Nd4 {[%clk 0:00:13]}  Bc4 {[%clk 0:00:34]} 28. Rfe1 {[%clk 0:00:10]}  f3 {[%clk 0:00:35]} 29. Nxf3 {[%clk 0:00:00]}  Nxf3+ {[%clk 0:00:35]} 0-1


[Site "https://www.chess.com"]

[Event "Titled Tuesday Blitz July 18 Early 2023"]
[White "Nithyalakshmi, Sivanesan"]
[Black "Fonseca Manrique, Enrique"]
[WhiteFideId "5706955"]
[BlackFideId "5114330"]
[WhiteElo "2350"]
[BlackElo "2590"]
[Result "1-0"]
[Round "2"]
[TimeControl "180+2"]
[Date "2023.07.18"]
[WhiteClock "0:00:18"]
[BlackClock "0:00:24"]
[Board "136"]

1. e4 {[%clk 0:03:00]}  c5 {[%clk 0:02:40]} 2. Nc3 {[%clk 0:03:00]}  e6 {[%clk 0:02:40]} 3. f4 {[%clk 0:02:37]}  a6 {[%clk 0:02:36]} 4. Nf3 {[%clk 0:02:26]}  Nc6 {[%clk 0:02:36]} 5. d3 {[%clk 0:02:23]}  Nf6 {[%clk 0:02:29]} 6. g3 {[%clk 0:02:17]}  d5 {[%clk 0:02:24]} 7. e5 {[%clk 0:02:13]}  Ng8 {[%clk 0:02:24]} 8. Bg2 {[%clk 0:02:13]}  Be7 {[%clk 0:02:23]} 9. O-O {[%clk 0:02:12]}  h5 {[%clk 0:02:23]} 10. Qe1 {[%clk 0:01:56]}  Nh6 {[%clk 0:02:22]} 11. Kh1 {[%clk 0:01:44]}  Nf5 {[%clk 0:02:18]} 12. Bd2 {[%clk 0:01:42]}  b5 {[%clk 0:02:06]} 13. Nd1 {[%clk 0:01:30]}  h4 {[%clk 0:01:32]} 14. g4 {[%clk 0:01:25]}  h3 {[%clk 0:01:32]} 15. gxf5 {[%clk 0:01:24]}  hxg2+ {[%clk 0:01:33]} 16. Kxg2 {[%clk 0:01:24]}  exf5 {[%clk 0:01:34]} 17. Nf2 {[%clk 0:01:16]}  d4 {[%clk 0:01:29]} 18. Nh3 {[%clk 0:01:10]}  Qd5 {[%clk 0:01:23]} 19. Ng1 {[%clk 0:01:04]}  Bb7 {[%clk 0:01:21]} 20. a4 {[%clk 0:00:56]}  O-O-O {[%clk 0:01:17]} 21. axb5 {[%clk 0:00:55]}  axb5 {[%clk 0:01:18]} 22. Qb1 {[%clk 0:00:52]}  Rh6 {[%clk 0:01:14]} 23. Qa2 {[%clk 0:00:49]}  c4 {[%clk 0:01:11]} 24. Ba5 {[%clk 0:00:31]}  Rdh8 {[%clk 0:01:04]} 25. dxc4 {[%clk 0:00:26]}  bxc4 {[%clk 0:00:53]} 26. h3 {[%clk 0:00:20]}  Rg6+ {[%clk 0:00:50]} 27. Kf2 {[%clk 0:00:20]}  Rxh3 {[%clk 0:00:45]} 28. Nxh3 {[%clk 0:00:19]}  Qxf3+ {[%clk 0:00:45]} 29. Kxf3 {[%clk 0:00:19]}  Nxe5+ {[%clk 0:00:37]} 30. Ke2 {[%clk 0:00:18]}  Rg2+ {[%clk 0:00:31]} 31. Rf2 {[%clk 0:00:19]}  d3+ {[%clk 0:00:29]} 32. cxd3 {[%clk 0:00:19]}  cxd3+ {[%clk 0:00:30]} 33. Kf1 {[%clk 0:00:19]}  Rxf2+ {[%clk 0:00:26]} 34. Nxf2 {[%clk 0:00:19]}  Nc6 {[%clk 0:00:25]} 35. Rc1 {[%clk 0:00:18]}  Kd7 {[%clk 0:00:25]} 36. Nxd3 {[%clk 0:00:18]}  Ba6 {[%clk 0:00:24]} 37. Qd5+ {[%clk 0:00:18]}  Bd6 {[%clk 0:00:24]} 38. Qxc6+ {[%clk 0:00:18]} 1-0


[Site "https://www.chess.com"]

[Event "Titled Tuesday Blitz July 18 Early 2023"]
[White "Alain_Otero"]
[Black "Sadykov, Ramil"]
[BlackFideId "24113590"]
[WhiteElo "2349"]
[BlackElo "2587"]
[Result "0-1"]
[Round "2"]
[TimeControl "180+2"]
[Date "2023.07.18"]
[WhiteClock "0:00:00"]
[BlackClock "0:00:12"]
[Board "137"]

1. e4 {[%clk 0:02:56]}  c5 {[%clk 0:02:46]} 2. Nf3 {[%clk 0:02:57]}  Nc6 {[%clk 0:02:46]} 3. d4 {[%clk 0:02:57]}  cxd4 {[%clk 0:02:46]} 4. Nxd4 {[%clk 0:02:57]}  Nf6 {[%clk 0:02:45]} 5. Nc3 {[%clk 0:02:58]}  d6 {[%clk 0:02:45]} 6. Bg5 {[%clk 0:02:57]}  e6 {[%clk 0:02:45]} 7. Qd2 {[%clk 0:02:55]}  a6 {[%clk 0:02:45]} 8. O-O-O {[%clk 0:02:53]}  h6 {[%clk 0:02:45]} 9. Nxc6 {[%clk 0:02:29]}  bxc6 {[%clk 0:02:46]} 10. Bf4 {[%clk 0:02:26]}  d5 {[%clk 0:02:46]} 11. Be2 {[%clk 0:02:07]}  Bb4 {[%clk 0:02:37]} 12. f3 {[%clk 0:01:56]}  O-O {[%clk 0:01:11]} 13. Be5 {[%clk 0:01:45]}  c5 {[%clk 0:01:08]} 14. g4 {[%clk 0:01:06]}  d4 {[%clk 0:00:55]} 15. g5 {[%clk 0:01:05]}  Nd7 {[%clk 0:00:55]} 16. Qf4 {[%clk 0:00:45]}  Nxe5 {[%clk 0:00:21]} 17. Qxe5 {[%clk 0:00:43]}  Qxg5+ {[%clk 0:00:21]} 18. Qxg5 {[%clk 0:00:43]}  hxg5 {[%clk 0:00:22]} 19. Nb1 {[%clk 0:00:39]}  Ba5 {[%clk 0:00:20]} 20. Rhg1 {[%clk 0:00:35]}  Bc7 {[%clk 0:00:20]} 21. Rxg5 {[%clk 0:00:33]}  Bf4+ {[%clk 0:00:20]} 22. Nd2 {[%clk 0:00:33]}  Bxg5 {[%clk 0:00:20]} 23. Kb1 {[%clk 0:00:32]}  Bxd2 {[%clk 0:00:20]} 24. Rxd2 {[%clk 0:00:31]}  e5 {[%clk 0:00:21]} 25. Bc4 {[%clk 0:00:31]}  Be6 {[%clk 0:00:20]} 26. Be2 {[%clk 0:00:09]}  f5 {[%clk 0:00:20]} 27. b3 {[%clk 0:00:05]}  fxe4 {[%clk 0:00:20]} 28. fxe4 {[%clk 0:00:05]}  Rf2 {[%clk 0:00:20]} 29. Kc1 {[%clk 0:00:02]}  a5 {[%clk 0:00:15]} 30. Bc4 {[%clk 0:00:00]}  Rf6 {[%clk 0:00:12]} 0-1


[Site "https://www.chess.com"]

[Event "Titled Tuesday Blitz July 18 Early 2023"]
[White "Principe, Gerson"]
[Black "Llanos, Guillermo"]
[WhiteFideId "3804550"]
[BlackFideId "100358"]
[WhiteElo "2560"]
[BlackElo "2347"]
[Result "1-0"]
[Round "2"]
[TimeControl "180+2"]
[Date "2023.07.18"]
[WhiteClock "0:00:14"]
[BlackClock "0:00:00"]
[Board "139"]

1. Nf3 {[%clk 0:03:00]}  Nf6 {[%clk 0:02:57]} 2. b3 {[%clk 0:03:01]}  g6 {[%clk 0:02:56]} 3. Bb2 {[%clk 0:03:01]}  Bg7 {[%clk 0:02:56]} 4. e3 {[%clk 0:03:02]}  c5 {[%clk 0:02:55]} 5. Be2 {[%clk 0:03:01]}  O-O {[%clk 0:02:55]} 6. O-O {[%clk 0:03:02]}  b6 {[%clk 0:02:55]} 7. a4 {[%clk 0:02:58]}  Bb7 {[%clk 0:02:54]} 8. a5 {[%clk 0:02:58]}  Nc6 {[%clk 0:02:53]} 9. a6 {[%clk 0:02:58]}  Bc8 {[%clk 0:02:53]} 10. d4 {[%clk 0:02:59]}  cxd4 {[%clk 0:02:47]} 11. exd4 {[%clk 0:02:59]}  d5 {[%clk 0:02:46]} 12. Nbd2 {[%clk 0:02:49]}  Bf5 {[%clk 0:02:35]} 13. Ne5 {[%clk 0:02:46]}  Qc7 {[%clk 0:02:13]} 14. c4 {[%clk 0:01:58]}  Rac8 {[%clk 0:01:24]} 15. cxd5 {[%clk 0:01:55]}  Nxd5 {[%clk 0:01:21]} 16. Rc1 {[%clk 0:01:54]}  Qd6 {[%clk 0:01:04]} 17. Ndc4 {[%clk 0:01:42]}  Qd8 {[%clk 0:01:03]} 18. Bf3 {[%clk 0:01:34]}  Ncb4 {[%clk 0:00:58]} 19. Qd2 {[%clk 0:01:26]}  Be6 {[%clk 0:00:50]} 20. Rfd1 {[%clk 0:01:25]}  b5 {[%clk 0:00:36]} 21. Ne3 {[%clk 0:01:21]}  Rxc1 {[%clk 0:00:33]} 22. Rxc1 {[%clk 0:01:18]}  Nxe3 {[%clk 0:00:25]} 23. Qxe3 {[%clk 0:01:15]}  Nxa6 {[%clk 0:00:22]} 24. d5 {[%clk 0:00:51]}  Bxd5 {[%clk 0:00:18]} 25. Rd1 {[%clk 0:00:49]}  e6 {[%clk 0:00:18]} 26. Nc6 {[%clk 0:00:49]}  Qd6 {[%clk 0:00:14]} 27. Bxg7 {[%clk 0:00:46]}  Kxg7 {[%clk 0:00:14]} 28. Bxd5 {[%clk 0:00:36]}  exd5 {[%clk 0:00:13]} 29. Ne7 {[%clk 0:00:20]}  Qf6 {[%clk 0:00:04]} 30. Nxd5 {[%clk 0:00:19]}  Qb2 {[%clk 0:00:04]} 31. h3 {[%clk 0:00:17]}  Nb8 {[%clk 0:00:02]} 32. h4 {[%clk 0:00:17]}  h5 {[%clk 0:00:00]} 33. Nf4 {[%clk 0:00:14]} 1-0


[Site "https://www.chess.com"]